Cogmind - Beta 15 @@@ ROGUE MODE // 2025.08.10 @ 15:27:23 Player: Zoe Result: Destroyed by S-27 Virus with Autogun Performance ------------- Evolutions (6) 3000 Regions Visited (8) 1600 Robots Destroyed (51) 255 Value Destroyed (1134) 1134 Prototype IDs (0) 0 Alien Tech Used (0) 0 Bonus (500) 500 TOTAL SCORE: 6489 Bonus ------- Entered DSFs 500 Cogmind --------- Core Integrity 0/1150 Matter 180/300 Energy 95/100 System Corruption 1% Temperature Cool (1) Movement Flying (35) Location -4/Factory Parts ------- > --- POWER (2) -------- (None) > --- PROPULSION (5) --- VTOL Module > --- UTILITY (10) ----- Signal Interpreter Improved Terrain Scan Processor Hacking Suite Hacking Suite > --- WEAPON (2) ------- (None) > --- INVENTORY (5) ---- Light Nuclear Core Advanced Cooling System Railgun Mining Laser Peak State ------------ > --- POWER ------------ Light Nuclear Core Light Nuclear Core > --- PROPULSION ------- Flight Unit Flight Unit Flight Unit Flight Unit Flight Unit > --- UTILITY ---------- Sensor Array Signal Interpreter Hacking Suite Hacking Suite > --- WEAPON ----------- High-powered Shotgun High-powered Shotgun > --- INVENTORY -------- Assault Rifle Heavy Assault Rifle Mining Laser [Rating: 25] Favorites ----------- Power Ion Engine Engine Ion Engine Power Core Light Nuclear Core Propulsion Light Treads Treads Light Treads Flight Unit Flight Unit Utility Signal Interpreter Device Sensor Array Storage Large Storage Unit Processor Signal Interpreter Hackware Hacking Suite Protection Improved Medium Armor Plating Weapon High-powered Shotgun Energy Gun EM Pulse Gun Ballistic Gun High-powered Shotgun Special Weapon Mining Laser Build | -11 -10 -9 -8 -7 -7 -6 -5 -4 ------- Run | Yrd Mat Mat Mat Fac DSF Fac Fac Fac Slots Evolved 12 | . . 2 2 2 . 2 2 2 Power 1 | . . . . . . . 1 . Propulsion 3 | . . 1 1 . . 1 . . Utility 8 | . . 1 1 2 . 1 1 2 Weapon . | . . . . . . . . . Parts Attached 44 | 7 4 12 11 1 3 . 1 5 Power 7 | 1 1 1 3 . . . 1 . Engine 4 | 1 1 1 1 . . . . . Core 3 | . . . 2 . . . 1 . Reactor . | . . . . . . . . . Propulsion 13 | 2 . 3 6 1 . . . 1 Treads 7 | 2 . 3 2 . . . . . Leg . | . . . . . . . . . Wheel . | . . . . . . . . . Hover . | . . . . . . . . . Flight 6 | . . . 4 1 . . . 1 Utility 13 | 2 1 3 2 . 3 . . 2 Device 5 | 1 . 2 1 . . . . 1 Storage 2 | 1 1 . . . . . . . Processor 3 | . . 1 1 . . . . 1 Hackware 2 | . . . . . 2 . . . Protection 1 | . . . . . 1 . . . Artifact . | . . . . . . . . . Weapon 11 | 2 2 5 . . . . . 2 Energy Gun 1 | 1 . . . . . . . . Energy Cannon . | . . . . . . . . . Ballistic Gun 9 | 1 2 4 . . . . . 2 Ballistic Cannon . | . . . . . . . . . Launcher . | . . . . . . . . . Special Weapon 1 | . . 1 . . . . . . Impact Weapon . | . . . . . . . . . Slashing Weapon . | . . . . . . . . . Piercing Weapon . | . . . . . . . . . Special Melee Weapon . | . . . . . . . . . Unidentified Prototypes . | . . . . . . . . . Parts Lost 12 | . . 1 1 . 1 . 5 4 Power 1 | . . . . . . . . 1 Propulsion 5 | . . . . . . . 3 2 Utility 4 | . . 1 1 . 1 . 1 . Weapon 2 | . . . . . . . 1 1 Highest Loss Streak 5 | . . 1 1 . 1 . 5 2 To Critical Strikes . | . . . . . . . . . Average Backups 9 | 5 8 13 12 5 5 4 3 4 Power 1 | . 1 2 1 1 1 1 . 1 Propulsion 2 | 1 2 2 3 1 1 . . . Utility 2 | . 2 3 2 . . . . . Weapon 3 | 2 2 4 4 3 3 3 3 2 Tool/Special . | . . . . . . . . . Unused Backups 9 | . 3 3 3 . . . . . Power 2 | . 1 . 1 . . . . . Propulsion 3 | . 1 1 1 . . . . . Utility . | . . . . . . . . . Weapon 4 | . 1 2 1 . . . . . Tool/Special . | . . . . . . . . . Average Slot Usage (%) 87 | . 100 96 96 84 84 80 64 31 Engine 7 | . 14 11 3 . . . . . Core 2 | . . . 5 7 7 6 8 2 Treads 23 | . 28 31 27 . . . . . Flight 4 | . . . 8 30 30 33 23 6 Device 10 | . 14 10 14 15 15 6 2 . Storage 8 | . 14 11 7 . . . . . Processor 7 | . . 10 10 15 15 6 5 8 Hackware 1 | . . . . . . 13 11 10 Energy Gun 2 | . 12 . . . . . . . Ballistic Gun 16 | . 15 21 18 15 15 13 9 3 Peak Build Rating 25 | 7 8 15 20 20 24 22 25 22 Average Rating 13 | 4 7 13 19 20 22 22 21 14 On Entrance 14 | . 7 8 15 20 20 21 22 15 Naked Turns . | . . . . . . . . . Heaviest Build 36 | 12 29 32 36 13 13 12 17 8 Greatest Support 80 | 40 40 60 80 16 16 20 20 8 Greatest Overweight (x) 2 | 1 . . 1 . . . 1 2 Average Overweight (x) . | . . . . . . . . . Largest Inventory Capacity 15 | 8 15 15 15 5 5 5 5 5 Average Capacity 11 | 7 13 15 12 5 5 5 5 5 Most Carried 15 | 8 11 15 15 5 5 4 4 5 Average Carried 10 | 5 8 13 12 5 5 4 3 4 Final Capacity 15 | 8 15 15 5 5 5 5 5 5 Final Carried 15 | 6 11 15 5 5 5 4 4 4 Class Distribution -------------------- 65% | Mutant 15% | Scavenger-Mutant 10% | Hacker-Mutant 4% | Scavenger-Scout 4% | Scavenger-Sprinter Dominant Class ---------------- Mutant | -10/Materials Mutant | -9/Materials Scavenger-Mutant | -8/Materials Scavenger-Mutant | -7/Factory Scavenger-Mutant | -7/DSF Scavenger-Mutant | -6/Factory Hacker-Mutant | -5/Factory Hacker-Mutant | -4/Factory Resources | -11 -10 -9 -8 -7 -7 -6 -5 -4 ----------- Run | Yrd Mat Mat Mat Fac DSF Fac Fac Fac Matter Collected 1168 | 288 62 363 403 . . . 46 6 Remotely . | . . . . . . . . . Salvage Created 1554 | 153 237 661 448 . . . . 55 Parts 116 | 16 11 44 31 . . . . 14 Haulers Intercepted 5 | . 2 1 2 . . . . . Recyclers Shooed 2 | 2 . . . . . . . . Parts Field Recycled . | . . . . . . . . . Retrieved Matter . | . . . . . . . . . Parts Self-Destructed . | . . . . . . . . . Prevented . | . . . . . . . . . Kills | -11 -10 -9 -8 -7 -7 -6 -5 -4 ------- Run | Yrd Mat Mat Mat Fac DSF Fac Fac Fac Combat Hostiles Destroyed 33 | . 3 15 14 . . . . 1 Guns 33 | . 3 15 14 . . . . 1 Classes Destroyed 9 | 2 2 4 . . . . . 1 Worker 3 | . . . . . . . . 3 Builder 3 | . . 1 1 . . . . 1 Tunneler 4 | 3 . . . . . . . 1 Hauler 5 | . 2 1 2 . . . . . Recycler 2 | 1 . 1 . . . . . . Watcher 1 | . . 1 . . . . . . Swarmer 13 | . . 4 8 . . . . 1 Grunt 17 | . 3 8 6 . . . . . Sentry 3 | . . 3 . . . . . . Best Kill Streak 9 | 2 2 9 5 . . . . 6 Combat Bots Only 8 | . 2 8 5 . . . . 1 Max Kills in Single Turn 5 | 1 1 3 1 . . . . 5 Gunslinging 1 | . . 1 . . . . . . Exploded . | . . . . . . . . . Melee . | . . . . . . . . . Uniques/NPCs Destroyed . | . . . . . . . . . Combat | -11 -10 -9 -8 -7 -7 -6 -5 -4 -------- Run | Yrd Mat Mat Mat Fac DSF Fac Fac Fac Hostile Shots Fired 320 | . 7 59 73 . 8 . 35 138 Missed 134 | . 4 18 19 . 6 . 16 71 Hits 186 | . 3 41 54 . 2 . 19 67 Melee 2 | . . . . . 2 . . . Projectile 184 | . 3 41 54 . . . 19 67 Critical Strikes 5 | . . . . . 2 . . 3 Damage Taken 2853 | . 32 455 638 . 42 . 283 1403 Core 1434 | . . 78 145 . 19 . 35 1157 Absorbed by Shields . | . . . . . . . . . Core Remaining (%) 92 | 100 100 80 73 . 97 100 96 . Volleys Fired 109 | 21 19 30 32 . . . 2 5 Largest 2 | 1 2 2 2 . . . 2 2 Hottest 100 | 20 60 100 50 . . . 50 55 Shots Fired 193 | 21 38 59 64 . . . 4 7 Gun 191 | 21 38 57 64 . . . 4 7 Cannon . | . . . . . . . . . Launcher . | . . . . . . . . . Special 2 | . . 2 . . . . . . Kinetic 172 | 21 19 57 64 . . . 4 7 Thermal 2 | . . 2 . . . . . . Explosive . | . . . . . . . . . Electromagnetic 19 | . 19 . . . . . . . Robot Hit Streak 8 | 4 7 7 8 . . . 2 6 Robot Miss Streak 6 | 1 4 6 5 . . . 1 1 Penetration Max . | . . . . . . . . . Secondary Targets 3 | . . 3 . . . . . . Max Gunslinging Chain 1 | . . 1 . . . . . . Shots Hit Robots 136 | 14 23 43 46 . . . 4 6 Core Hits 84 | 9 9 31 28 . . . 1 6 Critical Kills 2 | . . 1 1 . . . . . Critical Parts Destroyed 1 | . . . 1 . . . . . Critical Strikes 5 | . 2 1 2 . . . . . Destroy 3 | . . 1 2 . . . . . Corrupt 2 | . 2 . . . . . . . Melee Attacks . | . . . . . . . . . Impact . | . . . . . . . . . Slashing . | . . . . . . . . . Piercing . | . . . . . . . . . Sneak Attacks . | . . . . . . . . . Combat Hostiles . | . . . . . . . . . Follow-up Attacks . | . . . . . . . . . Damage Inflicted 2792 | 126 236 854 884 . . . 66 626 Guns 2281 | 126 236 854 884 . . . 66 115 Cannons . | . . . . . . . . . Explosions 511 | . . . . . . . . 511 Melee . | . . . . . . . . . Ramming . | . . . . . . . . . Kinetic 2145 | 126 100 854 884 . . . 66 115 Thermal 511 | . . . . . . . . 511 Explosive . | . . . . . . . . . Electromagnetic 136 | . 136 . . . . . . . Impact . | . . . . . . . . . Slashing . | . . . . . . . . . Piercing . | . . . . . . . . . Highest Corruption 2 | . . 2 . . . . 2 1 Average Corruption 1 | . . 2 . . . . 1 1 Corruption Purged . | . . . . . . . . . Corruption Blocked . | . . . . . . . . . Effects 9 | . . 7 . . . . 2 . Matter Fused 1 | . . . . . . . 1 . Heat Flow Errors 1 | . . 1 . . . . . . Energy Discharges 3 | . . 2 . . . . 1 . Parts Rejected 1 | . . 1 . . . . . . Data Loss (minor) 2 | . . 2 . . . . . . Misfires 1 | . . 1 . . . . . . Overload Shots . | . . . . . . . . . Overflow Damage 54 | . . . . . . . . 54 Projectiles . | . . . . . . . . . Explosions 54 | . . . . . . . . 54 Melee . | . . . . . . . . . Knockbacks . | . . . . . . . . . Impact . | . . . . . . . . . Kinetic . | . . . . . . . . . Secondary . | . . . . . . . . . Self-Inflicted Damage . | . . . . . . . . . Shots . | . . . . . . . . . Rammed . | . . . . . . . . . Targets Rammed . | . . . . . . . . . Kicked . | . . . . . . . . . Crushed . | . . . . . . . . . Highest Temperature 109 | . 58 109 4 . . . . . Average Temperature 17 | . 22 17 1 . . . . . Received Heat Transfer 354 | . 18 126 153 . . . 18 39 Siege Activations . | . . . . . . . . . Martial Activations . | . . . . . . . . . Shielding Activations . | . . . . . . . . . Robots Disrupted . | . . . . . . . . . Combat Hostiles . | . . . . . . . . . Robots Corrupted 1 | . 1 . . . . . . . Combat Hostiles . | . . . . . . . . . Parts Fried 3 | . 3 . . . . . . . Impact Corruptions . | . . . . . . . . . Robots Melted . | . . . . . . . . . Combat Hostiles . | . . . . . . . . . Parts Melted . | . . . . . . . . . Heat Transferred 300 | . . . . . . . . 300 Parts Sabotaged . | . . . . . . . . . Parts Stolen . | . . . . . . . . . Parts Stripped . | . . . . . . . . . Power Chain Reactions . | . . . . . . . . . Alert | -11 -10 -9 -8 -7 -7 -6 -5 -4 ------- Run | Yrd Mat Mat Mat Fac DSF Fac Fac Fac Maximum Alert Level 1 | . . 1 1 . . . . 1 Low Security (%) 75 | 100 100 64 44 100 100 100 100 87 Level 1 24 | . . 35 55 . . . . 12 Level 2 . | . . . . . . . . . Level 3 . | . . . . . . . . . Level 4 . | . . . . . . . . . Level 5 . | . . . . . . . . . High Security . | . . . . . . . . . Max Security . | . . . . . . . . . Peak Influence 379 | 5 50 277 379 165 119 56 30 264 Initial 165 | . . 12 109 165 119 56 27 14 Average 103 | . 7 141 225 165 115 56 13 37 Influence Increases 1447 | 20 106 531 463 5 . . 33 289 Destroy 0b10 Robot/C 660 | . 60 300 280 . . . . 20 Destroy 0b10 Robot/NC 90 | 20 10 20 15 . . . . 25 Destroy Leader 132 | . 24 74 34 . . . . . Successful Hack 60 | . 12 29 11 5 . . 3 . Disable Machine 105 | . . 30 30 . . . . 45 Destroy Structure 70 | . . 3 3 . . . . 64 Partial Spotted 15 | . . . . . . . . 15 Lose Combat Pursuer 315 | . . 75 90 . . . 30 120 Influence Decreases 1203 | 20 76 300 360 199 61 53 59 75 Entered New Map 518 | . . 18 152 199 51 53 29 16 Time Decay 630 | 20 76 272 198 . . . 20 44 Lost Part 55 | . . 10 10 . 10 . 10 15 Squads Dispatched 8 | . 2 2 1 . 1 . . 2 Investigation 3 | . 1 2 . . . . . . Extermination . | . . . . . . . . . Reinforcement 3 | . 1 . 1 . 1 . . . Assault 2 | . . . . . . . . 2 Garrison . | . . . . . . . . . Intercept . | . . . . . . . . . Searches Triggered . | . . . . . . . . . Construction Impeded . | . . . . . . . . . Haulers Reinforced . | . . . . . . . . . Active Scanning Responses . | . . . . . . . . . Cargo Convoy Interrupts . | . . . . . . . . . Stealth | -11 -10 -9 -8 -7 -7 -6 -5 -4 --------- Run | Yrd Mat Mat Mat Fac DSF Fac Fac Fac Distress Signals 6 | . . 2 2 . . . . 2 Communications Jammed . | . . . . . . . . . Distress Signals . | . . . . . . . . . Times Spotted 101 | . 7 28 29 . 3 . 12 22 Peak Tracking Total 13 | . 2 8 6 . 3 . 13 13 Tactical Retreats 13 | . . 5 4 . . . 1 3 Traps | -11 -10 -9 -8 -7 -7 -6 -5 -4 ------- Run | Yrd Mat Mat Mat Fac DSF Fac Fac Fac Traps Triggered 4 | . 1 2 . . . . . 1 Indirectly . | . . . . . . . . . Trap Hack Attempts . | . . . . . . . . . Triggered . | . . . . . . . . . Disarmed . | . . . . . . . . . Reprogrammed . | . . . . . . . . . Reused . | . . . . . . . . . Traps Extracted . | . . . . . . . . . Installed . | . . . . . . . . . Triggered . | . . . . . . . . . Machines | -11 -10 -9 -8 -7 -7 -6 -5 -4 ---------- Run | Yrd Mat Mat Mat Fac DSF Fac Fac Fac Machines Disabled 7 | . . 2 2 . . . . 3 Max in Single Turn 3 | . . 1 1 . . . . 3 Garrison Access 3 | . . . 1 . . . . 2 Machines Repaired . | . . . . . . . . . Machines Dismantled . | . . . . . . . . . Machines Sabotaged . | . . . . . . . . . Overloaded Fab Kills . | . . . . . . . . . Hacking | -11 -10 -9 -8 -7 -7 -6 -5 -4 --------- Run | Yrd Mat Mat Mat Fac DSF Fac Fac Fac Machines Accessed 9 | . 2 2 2 1 . . 1 1 Terminals 7 | . 2 2 1 1 . . 1 . Fabricators . | . . . . . . . . . Repair Stations . | . . . . . . . . . Recycling Units . | . . . . . . . . . Scanalyzers . | . . . . . . . . . Garrison Access 2 | . . . 1 . . . . 1 Total Hacks 34 | . 3 16 9 1 . . 3 2 Successful 20 | . 2 10 5 1 . . 1 1 Failed 14 | . 1 6 4 . . . 2 1 Catastrophic 2 | . . 1 1 . . . . . Database Lockouts . | . . . . . . . . . Manual 15 | . 3 7 5 . . . . . Terminals 28 | . 3 16 5 1 . . 3 . Fabricators . | . . . . . . . . . Repair Stations . | . . . . . . . . . Recycling Units . | . . . . . . . . . Scanalyzers . | . . . . . . . . . Garrison Access 6 | . . . 4 . . . . 2 Terminal Hacks 11 | . . 7 2 1 . . 1 . Robot Analysis 4 | . . 2 2 . . . . . Open DSF 2 | . . . . 1 . . 1 . Level Access Points 1 | . . 1 . . . . . . Recall Investigation 1 | . . 1 . . . . . . Registered Components 1 | . . 1 . . . . . . Zone Layout 2 | . . 2 . . . . . . Fabricator Hacks . | . . . . . . . . . Repair Station Hacks . | . . . . . . . . . Recycling Unit Hacks . | . . . . . . . . . Scanalyzer . | . . . . . . . . . Garrison Access Hacks 2 | . . . 1 . . . . 1 Seal Access 2 | . . . 1 . . . . 1 Unauthorized Hacks 7 | . 2 3 2 . . . . . Terminals 7 | . 2 3 2 . . . . . Track 2 | . . 1 1 . . . . . Botnet 5 | . 2 2 1 . . . . . Fabricators . | . . . . . . . . . Repair Stations . | . . . . . . . . . Recycling Units . | . . . . . . . . . Scanalyzers . | . . . . . . . . . Garrison Access . | . . . . . . . . . Data Cores Recovered . | . . . . . . . . . Used . | . . . . . . . . . Hacking Detections 8 | . 2 2 2 1 . . 1 . Full Trace Events 3 | . . 2 1 . . . . . Feedback Events . | . . . . . . . . . Feedback Blocked . | . . . . . . . . . Robot Schematics Acquired . | . . . . . . . . . Robots Built . | . . . . . . . . . Authchips . | . . . . . . . . . Time . | . . . . . . . . . Total Robot Build Rating . | . . . . . . . . . Part Schematics Acquired . | . . . . . . . . . Parts Built . | . . . . . . . . . Authchips . | . . . . . . . . . Time . | . . . . . . . . . Total Part Build Rating . | . . . . . . . . . Parts Repaired . | . . . . . . . . . Time . | . . . . . . . . . Parts Recycled . | . . . . . . . . . Recycled Matter . | . . . . . . . . . Retrieved Matter . | . . . . . . . . . Retrieved Components . | . . . . . . . . . Parts Scanalyzed . | . . . . . . . . . Part Schematics Acquired . | . . . . . . . . . Parts Damaged . | . . . . . . . . . Bothacking | -11 -10 -9 -8 -7 -7 -6 -5 -4 ------------ Run | Yrd Mat Mat Mat Fac DSF Fac Fac Fac Used RIF Installer . | . . . . . . . . . Robots Hacked . | . . . . . . . . . Non-combat . | . . . . . . . . . Combat . | . . . . . . . . . Robot Hacks Applied . | . . . . . . . . . Relay Couplers Released 2 | . . . . . . . . 2 Machine Destruction 2 | . . . . . . . . 2 Fabnet Peak Effective % . | . . . . . . . . . Robots Rewired . | . . . . . . . . . Allies Hacked . | . . . . . . . . . Hacks Repelled . | . . . . . . . . . Allies | -11 -10 -9 -8 -7 -7 -6 -5 -4 -------- Run | Yrd Mat Mat Mat Fac DSF Fac Fac Fac Total Allies . | . . . . . . . . . Largest Group . | . . . . . . . . . Highest-Rated Group . | . . . . . . . . . Highest-Rated Ally . | . . . . . . . . . Total Orders . | . . . . . . . . . Ally Attacks . | . . . . . . . . . Total Damage . | . . . . . . . . . Kills . | . . . . . . . . . Allies Corrupted . | . . . . . . . . . Allies Melted . | . . . . . . . . . Intel | -11 -10 -9 -8 -7 -7 -6 -5 -4 ------- Run | Yrd Mat Mat Mat Fac DSF Fac Fac Fac Active Infowar (turns) 1518 | 24 364 646 409 7 15 10 43 . Sensors 1129 | . . 645 409 7 15 10 43 . Terrain 101 | . . . 85 7 9 . . . Seismic 618 | 24 364 58 172 . . . . . Robot Analysis Total 3 | . . 2 1 . . . . . Derelict Logs Recovered . | . . . . . . . . . Drone Launches . | . . . . . . . . . Drone Recoveries . | . . . . . . . . . Exploration | -11 -10 -9 -8 -7 -7 -6 -5 -4 ------------- Run | Yrd Mat Mat Mat Fac DSF Fac Fac Fac Turns Passed 2084 | 224 364 758 409 7 15 10 99 198 Spaces Moved 1752 | 110 176 369 341 16 33 33 272 402 Core 77 | 10 . . . . . . . 67 Treads 748 | 100 176 369 103 . . . . . Legs . | . . . . . . . . . Wheels . | . . . . . . . . . Hover . | . . . . . . . . . Flight 927 | . . . 238 16 33 33 272 335 Fastest Speed 28 | 50 160 160 31 31 31 28 28 35 Average Speed 88 | 151 160 160 70 31 31 28 31 40 Slowest Speed 160 | 160 160 160 160 31 31 28 114 150 Overloaded Moves . | . . . . . . . . . Propulsion Burnouts . | . . . . . . . . . Robots Hopped 6 | . . . . . . . 4 2 Potential Cave-ins . | . . . . . . . . . Cave-ins Triggered . | . . . . . . . . . Exploration Rate (%) 21 | 6 40 36 24 1 36 . 13 16 Regions Visited 8 Branch Regions . Pre-discovered Areas . | . . . . . . . . . Known Exits Taken 5 | . . 1 1 1 . 1 1 . Unknown Exits Taken 2 | 1 1 . . . . . . . Scrap Searched . | . . . . . . . . . Spaces Dug 1 | . . 1 . . . . . . Terrain Destroyed 49 | . . 1 . . . . . 48 Melee . | . . . . . . . . . Projectile 1 | . . 1 . . . . . . AOE 48 | . . . . . . . . 48 Terrain Rammed . | . . . . . . . . . Walls Destroyed . | . . . . . . . . . Machines Disabled . | . . . . . . . . . Actions | -11 -10 -9 -8 -7 -7 -6 -5 -4 --------- Run | Yrd Mat Mat Mat Fac DSF Fac Fac Fac Total 2092 | 150 225 474 451 16 36 33 276 431 Wait 99 | . 12 42 36 . . . 5 4 Move 1732 | 109 175 368 340 15 32 32 263 398 Hop 6 | . . . . . . . 4 2 Pick Up 50 | 13 10 11 13 . . . . 3 Fast Attach 8 | . . 1 1 . 3 . . 3 Attach 28 | 7 . 3 8 . . 1 1 8 Detach 6 | . . . . . . . 1 5 Swap 22 | . 4 12 5 1 . . . . Drop 32 | . 5 7 16 . 1 . . 3 Fire 109 | 21 19 30 32 . . . 2 5 Melee . | . . . . . . . . . Ram . | . . . . . . . . . Kick . | . . . . . . . . . Crush . | . . . . . . . . . Escape Stasis . | . . . . . . . . . Rewire . | . . . . . . . . . Trap . | . . . . . . . . . Miscellaneous . | . . . . . . . . . Route ------- -11/Scrapyard -10/Materials (discovered 2 exits: *Mat x2) -9/Materials (discovered 3 exits: *Mat x3) -8/Materials -7/Factory -7/DSF -6/Factory -5/Factory -4/Factory History --------- Turn | Location | Event 10 | -11/Scrapyard | Discovered new exit (range 16) 225 | -11/Scrapyard | Entered Materials 302 | -10/Materials | Build established: Mutant 315 | -10/Materials | Discovered new exit (range 16) 575 | -10/Materials | Discovered new exit (range 10) 589 | -10/Materials | Entered another Materials area 589 | -9/Materials | Evolved 2 slots: Propulsion x1, Utility x1 732 | -9/Materials | Identified exit to Materials 866 | -9/Materials | Destroyed 8 combat bots 1347 | -9/Materials | Entered another Materials area 1347 | -8/Materials | Evolved 2 slots: Propulsion x1, Utility x1 1639 | -8/Materials | Build established: Scavenger-Mutant 1753 | -8/Materials | Discovered new exit (range 10) 1756 | -8/Materials | Identified exit to Factory 1756 | -8/Materials | Entered Factory 1756 | -7/Factory | Evolved 2 slots: Utility x2 1763 | -7/Factory | Identified exit to DSF 1763 | -7/Factory | Entered DSF 1774 | -7/DSF | Discovered new exit (range 15) 1778 | -7/DSF | Identified exit to Factory 1778 | -7/DSF | Entered Factory 1778 | -6/Factory | Evolved 2 slots: Propulsion x1, Utility x1 1779 | -6/Factory | Discovered new exit (range 10) 1782 | -6/Factory | Identified exit to Factory 1788 | -6/Factory | Entered another Factory area 1788 | -5/Factory | Evolved 2 slots: Power x1, Utility x1 1821 | -5/Factory | Identified exit to DSF 1821 | -5/Factory | Spotted B-75 Beast 1881 | -5/Factory | Discovered new exit (range 14) 1886 | -5/Factory | Identified exit to Factory 1887 | -5/Factory | Entered another Factory area 1887 | -4/Factory | Evolved 2 slots: Utility x2 1895 | -4/Factory | Lost 5 parts (3n1u1w) 2015 | -4/Factory | Spotted B-86 Titan 2030 | -4/Factory | Core integrity fell below 50% 2059 | -4/Factory | Core integrity fell below 20% 2085 | -4/Factory | Destroyed by S-27 Virus with Autogun Last Messages --------------- 02062_ Slug penetrates S-27 Virus. 02062_ S-27 Virus destroyed. 02065_ Slug penetrates Wall. 02065_ Slug penetrates K-01 Serf. 02066_ Penetrated by Slug. 02066_ Slug penetrates Subcomponent Replicator. 02066_ Subcomponent Replicator disabled. 02068_ Acquired VTOL Module. 02068_ Slug penetrates Wall. 02068_ Penetrated by Slug. 02068_ K-01 Serf destroyed. 02071_ Penetrated by Slug. 02071_ Assault Rifle destroyed. 02071_ Slug penetrates Wall. 02072_ U-05 Engineer builds a Door. 02073_ Penetrated by Slug. 02073_ K-01 Serf collects debris. 02077_ Slug penetrates Wall. 02078_ Penetrated by Slug. 02078_ Slug penetrates Wall. Map ----- +----------------------------------------------------+ | ???????? ??? #?????????????????????????????????? | | ??????? ?? #?????????????????????????????????? | | ???????""" """ #?????????????????????????????????? | | ????"" """ """ #?????????????????????????????????? | | ???""" """ """ #?????????????????????????????????? | | ?#? "" "" "" #?????????????????????????????????? | | ?# "" "" " #?????????????????????????????????? | | ?# #?????????????????????????????????? | | ?# #????######??????? ???????????????? | | ?# *[######"# ####?? ???????????????? | | ##############+## " ### #????????????????? | | =%% "" """ ##???????????????? | | ] = * "#???????????????? | | = * "##??????????????? | | ####+##########;; " #??????????????? | | ??? ??????# ; |"##??????????????? | | ??? [ #????# " !% #??????????????? | | ??? #######""% #??????????????? | | ??? ! # ;"= sp ! #??????????????? | | ??" # ;; h """ #??????????????? | | ??" !!! # """ / s # " ???????????? | | ?? !!! # """ # ##h##/###### ???????????? | | ?? !! # """ # # s #??? ????????????? | | ?? #?? # # #????? ???????????????? | | ??#######?###### # #?????????????????????? | | ???????????????# # @ #?????????????????????? | | ???????????????# # #?????????????????????? | | ???????????????? # #?????????????????????? | | ???????????????? # #?????????????????????? | | ?????????????????# #?????????????????????? | | ?????????????????###########?????????????????????? | | ?????????????????????????????????????????????????? | | ?????????????????????????????????????????????????? | | ?????????????????????????????????????????????????? | | ?????????????????????????????????????????????????? | | ?????????????????????????????????????????????????? | | ?????????????????????????????????????????????????? | | ?????????????????????????????????????????????????? | | ?????????????????????????????????????????????????? | | ?????????????????????????????????????????????????? | | ?????????????????????????????????????????????????? | | ?????????????????????????????????????????????????? | | ?????????????????????????????????????????????????? | | ?????????????????????????????????????????????????? | | ?????????????????????????????????????????????????? | | ?????????????????????????????????????????????????? | | ?????????????????????????????????????????????????? | | ?????????????????????????????????????????????????? | | ?????????????????????????????????????????????????? | | ?????????????????????????????????????????????????? | +----------------------------------------------------+ Best States ------------- Heat Dissipation 43 Energy Generation 23 Energy Capacity 250 Matter Stores 300 Matter Capacity 300 Sight Range 16 Robot Scan Range 14 Terrain Scan Range 16 Terrain Scan Density 110 Evasion (%) 64 Recoil Reduction 4 Offensive Hacking 20 Item Schematics ----------------- None Robot Schematics ------------------ None Fabricated ------------ Nothing Repaired ---------- Nothing Alien Tech Used ----------------- None Achievements -------------- None Challenges ------------ None Game ------ Seed ProtonPowerPrototype Manual? 0 Play Time 00:31:34 Cumulative 46.0 hours Start 2025.08.10 @ 14:57:06 End 2025.08.10 @ 15:27:23 Sessions 1 Manual Loads 0 Difficulty Rogue Special Mode None Game No. 88 Rogue 85 Adventurer 3 Explorer 0 Win Type - Total 0 Types 0/0/0/0/0/0/0/0/0/0 Lore% 29 Gallery% 30 Achievement% 31 Wizard Run 0 Options --------- Layout 1 ASCII 0 Keyboard 0 Movement Mouse Keybinds 0 Fullscreen 1 Font 24/Smallcaps Map View 50x35 Zoom Use 0% Tactical HUD 1 Map Filters NONE Filters NONE Steam 1 RUN: 9f365f34-0c21-449b-af2f-02cf40eac69a